Workbook

Sheet newton rapson
A2: Metodo di Newton Rapson
A4: f(x)= | B4: sin(x)-ln(x)
A5: h= | B5: 0.0001
B7: xn | D7: f(xn) | E7: f'(xn)
B8: 15 | D8: =effe($B$4,B8) -> -2.057762361 | E8: =(effe($B$4,B8+$B$5)-D8)/$B$5 -> -0.8263868704
B9: =B8-D8/E8 -> 12.50992854 | D9: -2.582934723 | E9: 0.9184741996
B10: 15.32213026 | D10: -2.352967168 | E10: -0.9917689455
B11: 12.94963495 | D11: -2.187117635 | E11: 0.8502082249
B12: 15.52208435 | D12: -2.557453424 | E12: -1.047207566
B13: 13.07991958 | D13: -2.079806691 | E13: 0.7945291485
B14: 15.69757898 | D14: -2.74312239 | E14: -1.063650489
B15: 13.11860927 | D15: -2.049437351 | E15: 0.775098737
B16: 15.7627077 | D16: -2.812363966 | E16: -1.061939836 | AB16: passo | AC16: =(N27-I27)/50 -> 0.58
B17: 13.11438067 | D17: -2.052719668 | E17: 0.7772850192
B18: 15.7552648 | D18: -2.804458476 | E18: -1.062349771 | AB18: x | AC18: f(x)
B19: 13.11540121 | D19: -2.05192666 | E19: 0.7767587739 | AB19: =I27 -> 1 | AC19: =effe($B$4,AB19) -> 0.8414709848
B20: 15.75705359 | D20: -2.806358717 | E20: -1.062256297 | AB20: =AB19+$AC$16 -> 1.58 | AC20: 0.5425327995
B21: 13.11516883 | D21: -2.052107183 | E21: 0.7768786795 | AB21: 2.16 | AC21: 0.06127523908
B22: 15.75664586 | D22: -2.805925598 | E22: -1.062277884 | AB22: 2.74 | AC22: -0.6170731415
B23: 13.11522252 | D23: -2.052065476 | E23: 0.7768509831 | AB23: 3.32 | AC23: -1.377427208
B24: 15.75674003 | D24: -2.806025634 | E24: -1.062272913 | AB24: 3.9 | AC24: -2.048742712
B25: 13.11521016 | D25: -2.05207508 | E25: 0.7768573609 | AB25: 4.48 | AC25: -2.47274203
B26: 15.75671834 | D26: -2.806002598 | E26: -1.062274059 | AB26: 5.06 | AC26: -2.561555691
B27: 13.115213 | D27: -2.052072867 | E27: 0.7768558912 | H27: xmin | I27: 1 | M27: xmax | N27: 30 | AB27: 5.64 | AC27: -2.329631394
B28: 15.75672334 | D28: -2.806007906 | E28: -1.062273795 | AB28: 6.22 | AC28: -1.890913179
AB29: 6.8 | AC29: -1.422809261
AB30: 7.38 | AC30: -1.10901564
AB31: 7.96 | AC31: -1.080043685
AB32: 8.54 | AC32: -1.370986655
AB33: 9.12 | AC33: -1.910388428
AB34: 9.7 | AC34: -2.543886512
AB35: 10.28 | AC35: -3.084916864
AB36: 10.86 | AC36: -3.375910189
AB37: 11.44 | AC37: -3.339973709
AB38: 12.02 | AC38: -3.006161582
AB39: 12.6 | AC39: -2.500073767
AB40: 13.18 | AC40: -2.00286203
AB41: 13.76 | AC41: -1.692054086
AB42: 14.34 | AC42: -1.683553032
AB43: 14.92 | AC43: -1.993784339
AB44: 15.5 | AC44: -2.534372542
AB45: 16.08 | AC45: -3.141089845
AB46: 16.66 | AC46: -3.627609186
AB47: 17.24 | AC47: -3.846481206
AB48: 17.82 | AC48: -3.737391707
AB49: 18.4 | AC49: -3.346916287
AB50: 18.98 | AC50: -2.813311332
AB51: 19.56 | AC51: =effe($B$4,AB51) -> -2.321316186
AB52: =AB51+$AC$16 -> 20.14 | AC52: -2.041749854
AB53: 20.72 | AC53: -2.075658891
AB54: 21.3 | AC54: -2.421284477
AB55: 21.88 | AC55: -2.974653116
AB56: 22.46 | AC56: -3.563597903
AB57: 23.04 | AC57: -4.004082992
AB58: 23.62 | AC58: -4.160409087
AB59: 24.2 | AC59: -3.98960836
AB60: 24.78 | AC60: -3.555508428
AB61: 25.36 | AC61: -3.007865502
AB62: 25.94 | AC62: -2.533391796
AB63: 26.52 | AC63: -2.294694954
AB64: 27.1 | AC64: -2.377100911
AB65: 27.68 | AC65: -2.760753145
AB66: 28.26 | AC66: -3.327113986
AB67: 28.84 | AC67: -3.897741605
AB68: 29.42 | AC68: -4.292659752
AB69: 30 | AC69: -4.389229006

Sheet bisezione
A2: Metodo di bisezione
A4: f(x)= | B4: x-cos(x)
A7: a | B7: b | C7: c | D7: f(a) | E7: f(b) | F7: f(c) | Q7: f(a) | R7: f(b) | S7: f©
A8: 0 | B8: 1 | C8: =0.5*(A8+B8) -> 0.5 | D8: =SEGNOo(Q8) -> - | E8: =SEGNOo(R8) -> + | F8: =SEGNOo(S8) -> - | Q8: =effe($B$4,A8) -> -1 | R8: =effe($B$4,B8) -> 0.4596976941 | S8: =effe($B$4,C8) -> -0.3775825619 | U8: =B8-A8 -> 1
A9: =IF(Q8*S8<0,A8,C8) -> 0.5 | B9: =IF(Q8*S8<0,C8,B8) -> 1 | C9: =0.5*(A9+B9) -> 0.75 | D9: =SEGNOo(Q9) -> - | E9: =SEGNOo(R9) -> + | F9: =SEGNOo(S9) -> + | Q9: =effe($B$4,A9) -> -0.3775825619 | R9: 0.4596976941 | S9: 0.01831113113 | U9: 0.5
A10: 0.5 | B10: 0.75 | C10: =0.5*(A10+B10) -> 0.625 | D10: - | E10: + | F10: - | Q10: =effe($B$4,A10) -> -0.3775825619 | R10: 0.01831113113 | S10: -0.1859631195 | U10: 0.25
A11: 0.625 | B11: 0.75 | C11: 0.6875 | D11: - | E11: + | F11: - | Q11: =effe($B$4,A11) -> -0.1859631195 | R11: 0.01831113113 | S11: -0.08533494615 | U11: 0.125
A12: 0.6875 | B12: 0.75 | C12: 0.71875 | D12: - | E12: + | F12: - | Q12: =effe($B$4,A12) -> -0.08533494615 | R12: 0.01831113113 | S12: -0.03387937242 | U12: 0.0625
A13: 0.71875 | B13: 0.75 | C13: 0.734375 | D13: - | E13: + | F13: - | Q13: =effe($B$4,A13) -> -0.03387937242 | R13: 0.01831113113 | S13: -0.007874725459 | U13: 0.03125
A14: 0.734375 | B14: 0.75 | C14: 0.7421875 | D14: - | E14: + | F14: + | Q14: =effe($B$4,A14) -> -0.007874725459 | R14: 0.01831113113 | S14: 0.005195711744 | U14: 0.015625
A15: 0.734375 | B15: 0.7421875 | C15: 0.73828125 | D15: - | E15: + | F15: - | Q15: =effe($B$4,A15) -> -0.007874725459 | R15: 0.005195711744 | S15: -0.001345149752 | U15: 0.0078125
A16: 0.73828125 | B16: 0.7421875 | C16: 0.740234375 | D16: - | E16: + | F16: + | Q16: =effe($B$4,A16) -> -0.001345149752 | R16: 0.005195711744 | S16: 0.001923872781 | U16: 0.00390625 | AB16: passo | AC16: =(N33-I33)/50 -> 0.11
A17: 0.73828125 | B17: 0.740234375 | C17: 0.7392578125 | D17: - | E17: + | F17: + | Q17: =effe($B$4,A17) -> -0.001345149752 | R17: 0.001923872781 | S17: 0.0002890091468 | U17: 0.001953125
A18: 0.73828125 | B18: 0.7392578125 | C18: 0.7387695312 | D18: - | E18: + | F18: - | Q18: =effe($B$4,A18) -> -0.001345149752 | R18: 0.0002890091468 | S18: -0.0005281584337 | U18: 0.0009765625 | AB18: x | AC18: f(x)
A19: 0.7387695312 | B19: 0.7392578125 | C19: 0.7390136719 | D19: - | E19: + | F19: - | Q19: =effe($B$4,A19) -> -0.0005281584337 | R19: 0.0002890091468 | S19: -0.0001195966713 | U19: 0.00048828125 | AB19: =I33 -> -1 | AC19: =effe($B$4,AB19) -> -1.540302306
A20: 0.7390136719 | B20: 0.7392578125 | C20: 0.7391357422 | D20: - | E20: + | F20: + | Q20: =effe($B$4,A20) -> -0.0001195966713 | R20: 0.0002890091468 | S20: 8.470073137e-05 | U20: 0.000244140625 | AB20: =AB19+$AC$16 -> -0.89 | AC20: -1.519412027
A21: 0.7390136719 | B21: 0.7391357422 | C21: 0.739074707 | D21: - | E21: + | F21: - | Q21: =effe($B$4,A21) -> -0.0001195966713 | R21: 8.470073137e-05 | S21: -1.744934664e-05 | U21: 0.0001220703125 | AB21: -0.78 | AC21: -1.490913538
A22: 0.739074707 | B22: 0.7391357422 | C22: 0.7391052246 | D22: - | E22: + | F22: + | Q22: =effe($B$4,A22) -> -1.744934664e-05 | R22: 8.470073137e-05 | S22: 3.362534821e-05 | U22: 6.103515625e-05 | AB22: -0.67 | AC22: -1.453821666
A23: 0.739074707 | B23: 0.7391052246 | C23: 0.7390899658 | D23: - | E23: + | F23: + | Q23: =effe($B$4,A23) -> -1.744934664e-05 | R23: 3.362534821e-05 | S23: 8.087914746e-06 | U23: 3.051757812e-05 | AB23: -0.56 | AC23: -1.407255111
A24: 0.739074707 | B24: 0.7390899658 | C24: 0.7390823364 | D24: - | E24: + | F24: - | Q24: =effe($B$4,A24) -> -1.744934664e-05 | R24: 8.087914746e-06 | S24: -4.680737458e-06 | U24: 1.525878906e-05 | AB24: -0.45 | AC24: -1.350447102
A25: 0.7390823364 | B25: 0.7390899658 | C25: 0.7390861511 | D25: - | E25: + | F25: + | Q25: =effe($B$4,A25) -> -4.680737458e-06 | R25: 8.087914746e-06 | S25: 1.703583266e-06 | U25: 7.629394531e-06 | AB25: -0.34 | AC25: =effe($B$4,AB25) -> -1.282754666
A26: 0.7390823364 | B26: 0.7390861511 | C26: 0.7390842438 | D26: - | E26: + | F26: - | Q26: =effe($B$4,A26) -> -4.680737458e-06 | R26: 1.703583266e-06 | S26: -1.488578441e-06 | U26: 3.814697266e-06 | AB26: -0.23 | AC26: -1.203666395
A27: 0.7390842438 | B27: 0.7390861511 | C27: 0.7390851974 | D27: - | E27: + | F27: + | Q27: =effe($B$4,A27) -> -1.488578441e-06 | R27: 1.703583266e-06 | S27: 1.075020759e-07 | U27: 1.907348633e-06 | AB27: -0.12 | AC27: -1.112808636
A28: 0.7390842438 | B28: 0.7390851974 | C28: 0.7390847206 | D28: - | E28: + | F28: - | Q28: =effe($B$4,A28) -> -1.488578441e-06 | R28: 1.075020759e-07 | S28: -6.905382662e-07 | U28: 9.536743164e-07 | AB28: -0.01 | AC28: -1.00995
A29: 0.7390847206 | B29: 0.7390851974 | C29: 0.739084959 | D29: - | E29: + | F29: - | Q29: =effe($B$4,A29) -> -6.905382662e-07 | R29: 1.075020759e-07 | S29: -2.915181162e-07 | U29: 4.768371582e-07 | AB29: 0.1 | AC29: -0.8950041653
A30: 0.739084959 | B30: 0.7390851974 | C30: 0.7390850782 | D30: - | E30: + | F30: - | Q30: =effe($B$4,A30) -> -2.915181162e-07 | R30: 1.075020759e-07 | S30: -9.200802453e-08 | U30: 2.384185791e-07 | AB30: 0.21 | AC30: -0.7680309147
A31: 0.7390850782 | B31: 0.7390851974 | C31: 0.7390851378 | D31: - | E31: + | F31: + | Q31: =effe($B$4,A31) -> -9.200802453e-08 | R31: 1.075020759e-07 | S31: 7.747025244e-09 | U31: 1.192092896e-07 | AB31: 0.32 | AC31: -0.6292354181
A32: 0.7390850782 | B32: 0.7390851378 | C32: 0.739085108 | D32: - | E32: + | F32: - | Q32: =effe($B$4,A32) -> -9.200802453e-08 | R32: 7.747025244e-09 | S32: -4.213050087e-08 | U32: 5.960464478e-08 | AB32: 0.43 | AC32: -0.4789657497
A33: 0.739085108 | B33: 0.7390851378 | C33: 0.7390851229 | D33: - | E33: + | F33: - | H33: xmin | I33: -1 | M33: xmax | N33: 4.5 | Q33: =effe($B$4,A33) -> -4.213050087e-08 | R33: 7.747025244e-09 | S33: -1.719173703e-08 | U33: 2.980232239e-08 | AB33: 0.54 | AC33: -0.3177086814
AB34: 0.65 | AC34: -0.1460837985
AB35: 0.76 | AC35: 0.03516398926
AB36: 0.87 | AC36: 0.2251734528
AB37: 0.98 | AC37: 0.4229774532
AB38: 1.09 | AC38: 0.6275146331
AB39: 1.2 | AC39: 0.8376422455
AB40: 1.31 | AC40: 1.052149967
AB41: 1.42 | AC41: 1.26977453
AB42: 1.53 | AC42: 1.489214989
AB43: 1.64 | AC43: 1.709148449
AB44: 1.75 | AC44: 1.928246056
AB45: 1.86 | AC45: 2.145189059
AB46: 1.97 | AC46: 2.358684753
AB47: 2.08 | AC47: 2.567482102
AB48: 2.19 | AC48: 2.770386863
AB49: 2.3 | AC49: 2.966276021
AB50: 2.41 | AC50: 3.154111365
AB51: 2.52 | AC51: 3.332952037
AB52: =AB51+$AC$16 -> 2.63 | AC52: 3.501965904
AB53: 2.74 | AC53: 3.660439618
AB54: 2.85 | AC54: 3.807787238
AB55: 2.96 | AC55: 3.943557313
AB56: 3.07 | AC56: 4.06743834
AB57: 3.18 | AC57: 4.179262529
AB58: 3.29 | AC58: 4.279007827
AB59: 3.4 | AC59: 4.366798193
AB60: 3.51 | AC60: 4.442902091
AB61: 3.62 | AC61: 4.507729252
AB62: 3.73 | AC62: 4.561825715
AB63: 3.84 | AC63: 4.605867232
AB64: 3.95 | AC64: 4.640651097
AB65: 4.06 | AC65: 4.667086506
AB66: 4.17 | AC66: 4.686183572
AB67: 4.28 | AC67: 4.699041112
AB68: 4.39 | AC68: 4.706833366
AB69: 4.5 | AC69: 4.710795799
